[Event "*** Titled Tuesday Blitz"]
[Site "Chess.com"]
[Date "2020.10.20"]
[Round "5"]
[White "Ziachess74"]
[Black "KetiGrant"]
[Result "0-1"]
[WhiteElo "2472"]
[BlackElo "2318"]
[TimeControl "180+1"]
[EndTime "10:57:28 PDT"]
[Termination "KetiGrant won on time"]

1. d4 {[%clk 0:03:00.9]} 1... Nf6 {[%clk 0:02:55.7]} 2. Bg5 {[%clk 0:02:59.9]}
2... c5 {[%clk 0:02:45.8]} 3. Nc3 {[%clk 0:02:50.4]} 3... cxd4 {[%clk
0:02:40.4]} 4. Qxd4 {[%clk 0:02:48.9]} 4... Nc6 {[%clk 0:02:40.2]} 5. Qh4 {[%clk
0:02:45.1]} 5... Qb6 {[%clk 0:02:37.4]} 6. O-O-O {[%clk 0:02:40.2]} 6... d6
{[%clk 0:02:29.5]} 7. e4 {[%clk 0:02:35.7]} 7... Be6 {[%clk 0:02:25.3]} 8. Nh3
{[%clk 0:01:47.7]} 8... Rc8 {[%clk 0:02:13.5]} 9. Bxf6 {[%clk 0:01:15.2]} 9...
gxf6 {[%clk 0:02:06]} 10. Nf4 {[%clk 0:01:14.6]} 10... h5 {[%clk 0:02:01]} 11.
Nxe6 {[%clk 0:01:09.8]} 11... fxe6 {[%clk 0:01:59.6]} 12. Kb1 {[%clk 0:00:58.8]}
12... Ne5 {[%clk 0:01:45]} 13. Bb5+ {[%clk 0:00:57.9]} 13... Kf7 {[%clk
0:01:43.3]} 14. a4 {[%clk 0:00:34.5]} 14... a6 {[%clk 0:01:40.1]} 15. a5 {[%clk
0:00:33.7]} 15... Qxa5 {[%clk 0:01:37.3]} 16. Be2 {[%clk 0:00:33.3]} 16... Bg7
{[%clk 0:01:25]} 17. f4 {[%clk 0:00:31.4]} 17... Ng6 {[%clk 0:01:23]} 18. Qh3
{[%clk 0:00:30.3]} 18... Nxf4 {[%clk 0:01:20.9]} 19. Qf3 {[%clk 0:00:30.3]}
19... Ng6 {[%clk 0:01:07.9]} 20. Rhf1 {[%clk 0:00:26.5]} 20... Ne5 {[%clk
0:01:05.3]} 21. Qh3 {[%clk 0:00:25.6]} 21... h4 {[%clk 0:01:04.7]} 22. Na2
{[%clk 0:00:23]} 22... Qa4 {[%clk 0:00:58.6]} 23. c3 {[%clk 0:00:20.7]} 23...
Qxe4+ {[%clk 0:00:57.6]} 24. Bd3 {[%clk 0:00:19.1]} 24... Nxd3 {[%clk
0:00:55.9]} 25. Rxd3 {[%clk 0:00:19]} 25... f5 {[%clk 0:00:53.4]} 26. Ka1 {[%clk
0:00:18]} 26... Rc4 {[%clk 0:00:40.5]} 27. Re3 {[%clk 0:00:17.9]} 27... Qd5
{[%clk 0:00:36]} 28. Nb4 {[%clk 0:00:13.6]} 28... Rxb4 {[%clk 0:00:27]} 29. cxb4
{[%clk 0:00:12.8]} 29... Qd2 {[%clk 0:00:26.8]} 30. Rb3 {[%clk 0:00:08.9]} 30...
Rc8 {[%clk 0:00:22]} 31. Rxf5+ {[%clk 0:00:07.8]} 31... Ke8 {[%clk 0:00:18.6]}
32. Rf1 {[%clk 0:00:06.9]} 32... Kd7 {[%clk 0:00:17.8]} 33. Rb1 {[%clk
0:00:05.9]} 33... a5 {[%clk 0:00:13.5]} 34. b5 {[%clk 0:00:02.9]} 34... a4
{[%clk 0:00:10.9]} 35. Ra3 {[%clk 0:00:03]} 35... Rc2 {[%clk 0:00:06.6]} 0-1

[Event "*** Titled Tuesday Blitz"]
[Site "Chess.com"]
[Date "2020.10.20"]
[Round "5"]
[White "garfield_pg"]
[Black "FontVella8"]
[Result "0-1"]
[WhiteElo "2313"]
[BlackElo "2491"]
[TimeControl "180+1"]
[EndTime "10:57:30 PDT"]
[Termination "FontVella8 won on time"]

1. e4 {[%clk 0:02:43.9]} 1... g6 {[%clk 0:02:59.8]} 2. d4 {[%clk 0:02:42.9]}
2... Bg7 {[%clk 0:03:00.3]} 3. Nc3 {[%clk 0:02:42.8]} 3... d6 {[%clk 0:03:00.4]}
4. Bg5 {[%clk 0:02:43]} 4... a6 {[%clk 0:02:59.4]} 5. a4 {[%clk 0:02:42.5]} 5...
b6 {[%clk 0:02:58.6]} 6. Qd2 {[%clk 0:02:42.3]} 6... Bb7 {[%clk 0:02:58.9]} 7.
f4 {[%clk 0:02:42.2]} 7... Nd7 {[%clk 0:02:57.9]} 8. Nf3 {[%clk 0:02:42]} 8...
h6 {[%clk 0:02:57.2]} 9. Bh4 {[%clk 0:02:41.7]} 9... Ngf6 {[%clk 0:02:47.3]} 10.
Bd3 {[%clk 0:02:40.8]} 10... O-O {[%clk 0:02:31]} 11. O-O {[%clk 0:02:39.6]}
11... c5 {[%clk 0:02:29]} 12. d5 {[%clk 0:02:36.9]} 12... Qc7 {[%clk 0:02:12.5]}
13. Bc4 {[%clk 0:02:36.6]} 13... Rae8 {[%clk 0:01:56.4]} 14. Rae1 {[%clk
0:02:29.8]} 14... Nh7 {[%clk 0:01:42.4]} 15. Qe2 {[%clk 0:01:52.4]} 15... Qc8
{[%clk 0:01:32.8]} 16. e5 {[%clk 0:01:42.2]} 16... Nb8 {[%clk 0:00:55.5]} 17.
Qd3 {[%clk 0:01:17.6]} 17... Qc7 {[%clk 0:00:40.5]} 18. e6 {[%clk 0:01:09.8]}
18... f5 {[%clk 0:00:38.7]} 19. h3 {[%clk 0:00:57.5]} 19... Nf6 {[%clk
0:00:37.2]} 20. Bxf6 {[%clk 0:00:55.3]} 20... Bxf6 {[%clk 0:00:38.1]} 21. g4
{[%clk 0:00:55.8]} 21... Bxc3 {[%clk 0:00:24.6]} 22. bxc3 {[%clk 0:00:50.3]}
22... Kg7 {[%clk 0:00:21.5]} 23. Nh4 {[%clk 0:00:39.1]} 23... Rf6 {[%clk
0:00:18]} 24. gxf5 {[%clk 0:00:36.2]} 24... g5 {[%clk 0:00:09.3]} 25. Ng6 {[%clk
0:00:30.9]} 25... b5 {[%clk 0:00:06.1]} 26. axb5 {[%clk 0:00:25.9]} 26... axb5
{[%clk 0:00:07]} 27. Bxb5 {[%clk 0:00:26.3]} 27... c4 {[%clk 0:00:07.5]} 28.
Bxc4 {[%clk 0:00:26.4]} 28... Qb6+ {[%clk 0:00:05.8]} 29. Kh2 {[%clk 0:00:26.1]}
29... Ba6 {[%clk 0:00:03.2]} 30. Bxa6 {[%clk 0:00:25.1]} 30... Nxa6 {[%clk
0:00:03.8]} 31. fxg5 {[%clk 0:00:24.7]} 31... hxg5 {[%clk 0:00:04.7]} 32. Rg1
{[%clk 0:00:22.7]} 32... Qf2+ {[%clk 0:00:04.7]} 33. Rg2 {[%clk 0:00:21.4]}
33... Qxf5 {[%clk 0:00:05.4]} 34. Nh4 {[%clk 0:00:11.9]} 34... Qf4+ {[%clk
0:00:05]} 35. Qg3 {[%clk 0:00:08.4]} 35... Qxg3+ {[%clk 0:00:05.2]} 36. Rxg3
{[%clk 0:00:07]} 36... Kh6 {[%clk 0:00:05.6]} 37. Nf3 {[%clk 0:00:03.8]} 37...
Rf5 {[%clk 0:00:05.7]} 38. c4 {[%clk 0:00:03.1]} 38... Ref8 {[%clk 0:00:05.3]}
0-1

[Event "*** Titled Tuesday Blitz"]
[Site "Chess.com"]
[Date "2020.10.20"]
[Round "5"]
[White "KyrgyzFighter"]
[Black "chessknight02"]
[Result "0-1"]
[WhiteElo "2343"]
[BlackElo "2226"]
[TimeControl "180+1"]
[EndTime "10:57:31 PDT"]
[Termination "chessknight02 won on time"]

1. c4 {[%clk 0:03:00.9]} 1... e5 {[%clk 0:02:50.6]} 2. Nc3 {[%clk 0:03:00.9]}
2... Nf6 {[%clk 0:02:47.7]} 3. Nf3 {[%clk 0:03:01]} 3... Nc6 {[%clk 0:02:46.6]}
4. e3 {[%clk 0:03:01.3]} 4... Bb4 {[%clk 0:02:40.2]} 5. Qc2 {[%clk 0:03:01.1]}
5... O-O {[%clk 0:02:39.5]} 6. Nd5 {[%clk 0:03:00.7]} 6... d6 {[%clk 0:02:36.7]}
7. a3 {[%clk 0:02:56.8]} 7... Bc5 {[%clk 0:02:33.1]} 8. b4 {[%clk 0:02:56.5]}
8... Bb6 {[%clk 0:02:33.5]} 9. Bd3 {[%clk 0:02:47]} 9... h6 {[%clk 0:02:26.5]}
10. Nxf6+ {[%clk 0:02:46.3]} 10... Qxf6 {[%clk 0:02:25.1]} 11. Be4 {[%clk
0:02:47.2]} 11... Qe7 {[%clk 0:02:21.7]} 12. Bb2 {[%clk 0:02:41.6]} 12... f5
{[%clk 0:02:20.3]} 13. Bxc6 {[%clk 0:02:41.2]} 13... bxc6 {[%clk 0:02:19.6]} 14.
c5 {[%clk 0:02:41.6]} 14... dxc5 {[%clk 0:02:18.8]} 15. Nxe5 {[%clk 0:02:41.3]}
15... cxb4 {[%clk 0:02:16.6]} 16. Nxc6 {[%clk 0:02:37.6]} 16... Qd6 {[%clk
0:02:11.4]} 17. axb4 {[%clk 0:02:25.5]} 17... Bb7 {[%clk 0:02:09.1]} 18. b5
{[%clk 0:02:25.7]} 18... a6 {[%clk 0:02:07.5]} 19. Ba3 {[%clk 0:01:51.5]} 19...
Qf6 {[%clk 0:01:58.1]} 20. O-O {[%clk 0:01:50.4]} 20... axb5 {[%clk 0:01:15.6]}
21. Bxf8 {[%clk 0:01:13.9]} 21... Rxf8 {[%clk 0:01:14.4]} 22. Na5 {[%clk
0:00:52.9]} 22... Bxa5 {[%clk 0:00:55.5]} 23. Rxa5 {[%clk 0:00:52]} 23... f4
{[%clk 0:00:49.9]} 24. Qxc7 {[%clk 0:00:42.6]} 24... Rf7 {[%clk 0:00:38.4]} 25.
Qxf4 {[%clk 0:00:35]} 25... Qc6 {[%clk 0:00:27.9]} 26. Qg3 {[%clk 0:00:27.3]}
26... Rf6 {[%clk 0:00:26.1]} 27. f3 {[%clk 0:00:21.5]} 27... Rg6 {[%clk
0:00:22.9]} 28. Qe5 {[%clk 0:00:20.4]} 28... Rg5 {[%clk 0:00:16.2]} 29. Qb8+
{[%clk 0:00:19]} 29... Kh7 {[%clk 0:00:16.5]} 30. Ra7 {[%clk 0:00:19]} 30... Bc8
{[%clk 0:00:13.3]} 31. Ra8 {[%clk 0:00:18.9]} 31... Bh3 {[%clk 0:00:08.4]} 32.
Qg8+ {[%clk 0:00:16.9]} 32... Kg6 {[%clk 0:00:08.5]} 33. Qb8 {[%clk 0:00:02.8]}
33... Rxg2+ {[%clk 0:00:04.4]} 34. Kh1 {[%clk 0:00:02.9]} 34... Rg5 {[%clk
0:00:02.2]} 35. e4 {[%clk 0:00:01.4]} 35... Qc5 {[%clk 0:00:01.4]} 0-1

[Event "*** Titled Tuesday Blitz"]
[Site "Chess.com"]
[Date "2020.10.20"]
[Round "5"]
[White "Fandorine"]
[Black "LyonBeast"]
[Result "0-1"]
[WhiteElo "2873"]
[BlackElo "3037"]
[TimeControl "180+1"]
[EndTime "10:57:32 PDT"]
[Termination "LyonBeast won by resignation"]

1. e4 {[%clk 0:03:00.9]} 1... c6 {[%clk 0:02:58.3]} 2. d4 {[%clk 0:02:57.8]}
2... d5 {[%clk 0:02:58.5]} 3. exd5 {[%clk 0:02:55.9]} 3... cxd5 {[%clk
0:02:57.6]} 4. Bd3 {[%clk 0:02:56.5]} 4... Nf6 {[%clk 0:02:57.8]} 5. c3 {[%clk
0:02:57]} 5... Bg4 {[%clk 0:02:57.8]} 6. Qb3 {[%clk 0:02:57.6]} 6... Qb6 {[%clk
0:02:57.5]} 7. h3 {[%clk 0:02:54.8]} 7... Bh5 {[%clk 0:02:55.2]} 8. Bf4 {[%clk
0:02:52.5]} 8... e6 {[%clk 0:02:33.6]} 9. Nd2 {[%clk 0:02:49.7]} 9... Nc6 {[%clk
0:02:31]} 10. Ngf3 {[%clk 0:02:49]} 10... Be7 {[%clk 0:02:26.6]} 11. O-O {[%clk
0:02:48.9]} 11... Bg6 {[%clk 0:02:25.8]} 12. Bxg6 {[%clk 0:02:40.2]} 12... hxg6
{[%clk 0:02:25.4]} 13. Rfe1 {[%clk 0:02:40.8]} 13... O-O {[%clk 0:02:22.9]} 14.
Ne5 {[%clk 0:02:39.7]} 14... Rfc8 {[%clk 0:02:20]} 15. Nd3 {[%clk 0:02:37.9]}
15... Qa6 {[%clk 0:02:17.5]} 16. Ne5 {[%clk 0:02:18.8]} 16... b5 {[%clk
0:02:10.6]} 17. a3 {[%clk 0:02:17.8]} 17... Nxe5 {[%clk 0:02:05.3]} 18. Bxe5
{[%clk 0:02:17.6]} 18... Nd7 {[%clk 0:02:05.7]} 19. Nf3 {[%clk 0:02:16.4]} 19...
Qa4 {[%clk 0:02:05.4]} 20. Qa2 {[%clk 0:02:13.8]} 20... Qc4 {[%clk 0:01:50.4]}
21. Qb1 {[%clk 0:02:13.1]} 21... a5 {[%clk 0:01:49.9]} 22. Re3 {[%clk
0:01:52.3]} 22... b4 {[%clk 0:01:42.8]} 23. axb4 {[%clk 0:01:51.4]} 23... axb4
{[%clk 0:01:43.7]} 24. Rxa8 {[%clk 0:01:51.7]} 24... Rxa8 {[%clk 0:01:44.3]} 25.
b3 {[%clk 0:01:51.9]} 25... Qa6 {[%clk 0:01:37.8]} 26. cxb4 {[%clk 0:01:52.8]}
26... Qa1 {[%clk 0:01:37.3]} 27. Re1 {[%clk 0:01:47.4]} 27... Qxb1 {[%clk
0:01:35.7]} 28. Rxb1 {[%clk 0:01:48.3]} 28... Bxb4 {[%clk 0:01:36]} 29. Rc1
{[%clk 0:01:48.7]} 29... f6 {[%clk 0:01:34.1]} 30. Bf4 {[%clk 0:01:48.2]} 30...
Kf7 {[%clk 0:01:28.1]} 31. Rc7 {[%clk 0:01:41.4]} 31... Ke7 {[%clk 0:01:26]} 32.
Rb7 {[%clk 0:01:40.8]} 32... Bd6 {[%clk 0:01:24.9]} 33. Bd2 {[%clk 0:01:24.2]}
33... Ra1+ {[%clk 0:01:18.5]} 34. Be1 {[%clk 0:01:24.4]} 34... e5 {[%clk
0:01:09.3]} 35. dxe5 {[%clk 0:01:20.5]} 35... fxe5 {[%clk 0:01:09]} 36. Kf1
{[%clk 0:01:21]} 36... e4 {[%clk 0:00:51.6]} 37. Nd4 {[%clk 0:01:16.6]} 37...
Bc5 {[%clk 0:00:51.3]} 38. Nc2 {[%clk 0:01:12.2]} 38... Rc1 {[%clk 0:00:45.7]}
39. b4 {[%clk 0:00:54.9]} 39... Bxf2 {[%clk 0:00:44.8]} 40. Kxf2 {[%clk
0:00:53.8]} 40... Rxc2+ {[%clk 0:00:45.2]} 41. Ke3 {[%clk 0:00:53.5]} 41... Ke6
{[%clk 0:00:42.8]} 42. Ra7 {[%clk 0:00:49.9]} 42... Rxg2 {[%clk 0:00:39.1]} 43.
Ra6+ {[%clk 0:00:49.9]} 43... Kf5 {[%clk 0:00:38.1]} 44. Ra7 {[%clk 0:00:47.3]}
44... Ne5 {[%clk 0:00:36.9]} 45. Rxg7 {[%clk 0:00:42.6]} 45... d4+ {[%clk
0:00:31.5]} 46. Kxd4 {[%clk 0:00:40.5]} 46... Nf3+ {[%clk 0:00:32.4]} 47. Kd5
{[%clk 0:00:36.4]} 47... Nxe1 {[%clk 0:00:32.9]} 48. Rf7+ {[%clk 0:00:36.9]}
48... Kg5 {[%clk 0:00:33.4]} 49. Kxe4 {[%clk 0:00:37.3]} 49... Rb2 {[%clk
0:00:33.8]} 50. Rb7 {[%clk 0:00:34]} 50... Nc2 {[%clk 0:00:33.8]} 51. b5 {[%clk
0:00:31.6]} 51... Na3 {[%clk 0:00:33.8]} 52. b6 {[%clk 0:00:29.6]} 52... Nc4
{[%clk 0:00:33.9]} 53. h4+ {[%clk 0:00:26]} 53... Kh6 {[%clk 0:00:30]} 54. Kf4
{[%clk 0:00:20.2]} 54... Rxb6 {[%clk 0:00:28.7]} 55. Rc7 {[%clk 0:00:21.1]}
55... Rb4 {[%clk 0:00:27.9]} 0-1

[Event "*** Titled Tuesday Blitz"]
[Site "Chess.com"]
[Date "2020.10.20"]
[Round "5"]
[White "AurumO"]
[Black "Maksimus1998"]
[Result "0-1"]
[WhiteElo "1952"]
[BlackElo "2604"]
[TimeControl "180+1"]
[EndTime "10:57:33 PDT"]
[Termination "Maksimus1998 won on time"]

1. e4 {[%clk 0:03:00.9]} 1... c5 {[%clk 0:02:56.8]} 2. c3 {[%clk 0:03:00.7]}
2... d5 {[%clk 0:02:52.9]} 3. exd5 {[%clk 0:03:01.6]} 3... Qxd5 {[%clk
0:02:53.3]} 4. d4 {[%clk 0:03:01.7]} 4... Nf6 {[%clk 0:02:50.3]} 5. Nf3 {[%clk
0:03:01.2]} 5... e6 {[%clk 0:02:36.2]} 6. Nbd2 {[%clk 0:02:59.6]} 6... cxd4
{[%clk 0:02:35.6]} 7. cxd4 {[%clk 0:02:59.2]} 7... Nc6 {[%clk 0:02:35.3]} 8. Bc4
{[%clk 0:02:58.8]} 8... Qd8 {[%clk 0:02:31.9]} 9. O-O {[%clk 0:02:58.5]} 9...
Be7 {[%clk 0:02:31.2]} 10. Re1 {[%clk 0:02:58.3]} 10... Nxd4 {[%clk 0:02:28.3]}
11. Nxd4 {[%clk 0:02:50.2]} 11... Qxd4 {[%clk 0:02:29.2]} 12. Bb5+ {[%clk
0:02:50.2]} 12... Bd7 {[%clk 0:02:20.1]} 13. Bxd7+ {[%clk 0:02:49.8]} 13... Qxd7
{[%clk 0:02:21]} 14. Nf3 {[%clk 0:02:49.8]} 14... Qxd1 {[%clk 0:02:20.4]} 15.
Rxd1 {[%clk 0:02:50.7]} 15... Rd8 {[%clk 0:02:20.7]} 16. Be3 {[%clk 0:02:46.9]}
16... b6 {[%clk 0:02:15.2]} 17. Ne5 {[%clk 0:02:43.7]} 17... Rxd1+ {[%clk
0:02:12.3]} 18. Rxd1 {[%clk 0:02:44.6]} 18... Nd5 {[%clk 0:02:12.9]} 19. Nc6
{[%clk 0:02:36.7]} 19... Bf6 {[%clk 0:02:08.7]} 20. b3 {[%clk 0:02:09.5]} 20...
a6 {[%clk 0:02:02.2]} 21. Bd4 {[%clk 0:01:40]} 21... Kd7 {[%clk 0:01:56.9]} 22.
Ne5+ {[%clk 0:01:33.8]} 22... Bxe5 {[%clk 0:01:56.4]} 23. Bxe5 {[%clk
0:01:34.7]} 23... f6 {[%clk 0:01:57]} 24. Bb2 {[%clk 0:01:29.3]} 24... Rc8
{[%clk 0:01:12.4]} 25. Rd2 {[%clk 0:01:20.3]} 25... Kd6 {[%clk 0:00:42.1]} 26.
h4 {[%clk 0:01:17]} 26... h5 {[%clk 0:00:40.4]} 27. g3 {[%clk 0:01:14.6]} 27...
b5 {[%clk 0:00:39]} 28. Kg2 {[%clk 0:01:05.9]} 28... b4 {[%clk 0:00:39.2]} 29.
f3 {[%clk 0:00:49.7]} 29... a5 {[%clk 0:00:38.9]} 30. Kf2 {[%clk 0:00:39.4]}
30... e5 {[%clk 0:00:38.3]} 31. g4 {[%clk 0:00:35.1]} 31... hxg4 {[%clk
0:00:38]} 32. fxg4 {[%clk 0:00:36]} 32... Ke6 {[%clk 0:00:38.6]} 33. Kf3 {[%clk
0:00:24.2]} 33... Nc3 {[%clk 0:00:32.5]} 34. Ba1 {[%clk 0:00:09.9]} 34... Rh8
{[%clk 0:00:20.5]} 35. h5 {[%clk 0:00:06.5]} 35... f5 {[%clk 0:00:20.2]} 36.
Bxc3 {[%clk 0:00:04.5]} 36... bxc3 {[%clk 0:00:19.3]} 37. Rc2 {[%clk 0:00:04.4]}
37... fxg4+ {[%clk 0:00:19.9]} 38. Kxg4 {[%clk 0:00:05.2]} 38... Rc8 {[%clk
0:00:20.2]} 39. Kg5 {[%clk 0:00:05.1]} 39... Kd5 {[%clk 0:00:20.3]} 40. Kg6
{[%clk 0:00:05.4]} 40... Rc7 {[%clk 0:00:20.9]} 41. a3 {[%clk 0:00:02.8]} 41...
Kd4 {[%clk 0:00:21.1]} 42. b4 {[%clk 0:00:02.4]} 42... axb4 {[%clk 0:00:22]} 43.
axb4 {[%clk 0:00:03.3]} 43... Kd3 {[%clk 0:00:22.4]} 44. Rf2 {[%clk 0:00:02.1]}
44... c2 {[%clk 0:00:22.5]} 45. Rxc2 {[%clk 0:00:02.1]} 45... Kxc2 {[%clk
0:00:22.4]} 46. b5 {[%clk 0:00:01.6]} 46... e4 {[%clk 0:00:21.1]} 47. b6 {[%clk
0:00:01.8]} 47... Rb7 {[%clk 0:00:21.8]} 0-1

[Event "*** Titled Tuesday Blitz"]
[Site "Chess.com"]
[Date "2020.10.20"]
[Round "5"]
[White "Jospem"]
[Black "abhidabhi"]
[Result "1/2-1/2"]
[WhiteElo "2952"]
[BlackElo "2810"]
[TimeControl "180+1"]
[EndTime "10:57:37 PDT"]
[Termination "Game drawn by agreement"]

1. e4 {[%clk 0:03:00.9]} 1... e5 {[%clk 0:02:59.3]} 2. Nf3 {[%clk 0:02:59.6]}
2... Nc6 {[%clk 0:02:59.6]} 3. Bc4 {[%clk 0:03:00]} 3... Bc5 {[%clk 0:02:58.9]}
4. c3 {[%clk 0:02:59.9]} 4... Nf6 {[%clk 0:02:58.7]} 5. d3 {[%clk 0:02:59.7]}
5... d6 {[%clk 0:02:58.8]} 6. Nbd2 {[%clk 0:02:59.8]} 6... h6 {[%clk 0:02:55.7]}
7. h3 {[%clk 0:03:00]} 7... a6 {[%clk 0:02:54.2]} 8. a4 {[%clk 0:02:59.6]} 8...
Ba7 {[%clk 0:02:51.2]} 9. Nf1 {[%clk 0:02:50.6]} 9... O-O {[%clk 0:02:45.6]} 10.
Ng3 {[%clk 0:02:49.3]} 10... d5 {[%clk 0:02:43.4]} 11. exd5 {[%clk 0:02:45.7]}
11... Nxd5 {[%clk 0:02:43.4]} 12. O-O {[%clk 0:02:46.1]} 12... Nf6 {[%clk
0:02:17.3]} 13. a5 {[%clk 0:02:41.3]} 13... Qd6 {[%clk 0:02:11.3]} 14. Be3
{[%clk 0:02:02.2]} 14... Bxe3 {[%clk 0:01:52.9]} 15. fxe3 {[%clk 0:02:03.1]}
15... e4 {[%clk 0:01:52.5]} 16. Nxe4 {[%clk 0:01:58.3]} 16... Nxe4 {[%clk
0:01:52.3]} 17. dxe4 {[%clk 0:01:59.2]} 17... Qe7 {[%clk 0:01:41.6]} 18. Bd5
{[%clk 0:01:56]} 18... Be6 {[%clk 0:01:19.7]} 19. Qb3 {[%clk 0:01:33.3]} 19...
Nd8 {[%clk 0:01:01.5]} 20. Nd4 {[%clk 0:01:25.8]} 20... c6 {[%clk 0:00:56.5]}
21. Bxe6 {[%clk 0:01:10.6]} 21... Nxe6 {[%clk 0:00:55.6]} 22. Nf5 {[%clk
0:01:10.6]} 22... Qc7 {[%clk 0:00:52.4]} 23. Qb6 {[%clk 0:00:48.7]} 23... Qxb6
{[%clk 0:00:47.2]} 24. axb6 {[%clk 0:00:48.6]} 24... Rad8 {[%clk 0:00:39.6]} 25.
e5 {[%clk 0:00:43.4]} 25... Rfe8 {[%clk 0:00:36.3]} 26. Rad1 {[%clk 0:00:38.7]}
26... Nc5 {[%clk 0:00:30.1]} 27. Rxd8 {[%clk 0:00:18.8]} 27... Rxd8 {[%clk
0:00:29.6]} 28. Nd6 {[%clk 0:00:19.7]} 28... Rd7 {[%clk 0:00:26.7]} 29. Rf4
{[%clk 0:00:14.4]} 29... Nd3 {[%clk 0:00:25]} 30. Re4 {[%clk 0:00:12.8]} 30...
Nxb2 {[%clk 0:00:18.6]} 31. Rd4 {[%clk 0:00:10.7]} 31... c5 {[%clk 0:00:13.9]}
32. Re4 {[%clk 0:00:10.5]} 32... a5 {[%clk 0:00:13.5]} 33. Nc4 {[%clk
0:00:07.9]} 33... Nxc4 {[%clk 0:00:11.9]} 34. Rxc4 {[%clk 0:00:08.8]} 34... Rd5
{[%clk 0:00:11.8]} 35. Ra4 {[%clk 0:00:09.2]} 35... Rxe5 {[%clk 0:00:11.3]} 36.
Rxa5 {[%clk 0:00:09.9]} 36... Rxe3 {[%clk 0:00:07]} 37. Rxc5 {[%clk 0:00:10]}
37... Re6 {[%clk 0:00:07.1]} 38. Rc8+ {[%clk 0:00:04.7]} 38... Kh7 {[%clk
0:00:07.1]} 39. Rc7 {[%clk 0:00:05]} 39... Rxb6 {[%clk 0:00:07]} 40. Rxf7 {[%clk
0:00:05.3]} 1/2-1/2

[Event "*** Titled Tuesday Blitz"]
[Site "Chess.com"]
[Date "2020.10.20"]
[Round "5"]
[White "Zmof"]
[Black "kot60"]
[Result "1-0"]
[WhiteElo "2179"]
[BlackElo "2338"]
[TimeControl "180+1"]
[EndTime "10:57:37 PDT"]
[Termination "Zmof won by resignation"]

1. e4 {[%clk 0:02:57.6]} 1... e5 {[%clk 0:02:59.9]} 2. Bc4 {[%clk 0:02:54.7]}
2... Bc5 {[%clk 0:02:58.2]} 3. Nf3 {[%clk 0:02:54.2]} 3... d6 {[%clk 0:02:56.5]}
4. O-O {[%clk 0:02:53.2]} 4... Nc6 {[%clk 0:02:53.1]} 5. c3 {[%clk 0:02:52.6]}
5... Be6 {[%clk 0:02:49.9]} 6. Bxe6 {[%clk 0:02:48]} 6... fxe6 {[%clk
0:02:49.5]} 7. d4 {[%clk 0:02:48.6]} 7... exd4 {[%clk 0:02:49.6]} 8. cxd4 {[%clk
0:02:48.8]} 8... Bb6 {[%clk 0:02:49.5]} 9. Nc3 {[%clk 0:02:48.3]} 9... Nf6
{[%clk 0:02:44.1]} 10. e5 {[%clk 0:02:32.5]} 10... dxe5 {[%clk 0:02:42.7]} 11.
dxe5 {[%clk 0:02:32]} 11... Qxd1 {[%clk 0:02:40.6]} 12. Rxd1 {[%clk 0:02:31.2]}
12... Ng4 {[%clk 0:02:39.6]} 13. Ne4 {[%clk 0:02:21.3]} 13... Ncxe5 {[%clk
0:02:33]} 14. Nxe5 {[%clk 0:02:20.6]} 14... Nxe5 {[%clk 0:02:31.8]} 15. Ng5
{[%clk 0:01:48.8]} 15... O-O {[%clk 0:02:12.3]} 16. Be3 {[%clk 0:01:45.7]} 16...
Rae8 {[%clk 0:01:58.5]} 17. Bxb6 {[%clk 0:01:43.6]} 17... axb6 {[%clk
0:01:57.7]} 18. Re1 {[%clk 0:01:39.9]} 18... Rf5 {[%clk 0:01:54.8]} 19. h4
{[%clk 0:01:25.5]} 19... h6 {[%clk 0:01:51.7]} 20. Nh3 {[%clk 0:01:25.7]} 20...
Kf7 {[%clk 0:01:48.4]} 21. f4 {[%clk 0:01:24.3]} 21... Nd3 {[%clk 0:01:45.1]}
22. Re4 {[%clk 0:01:07.7]} 22... e5 {[%clk 0:01:23.6]} 23. Rd1 {[%clk
0:00:45.5]} 23... Nc5 {[%clk 0:00:56.8]} 24. Rxe5 {[%clk 0:00:45.2]} 24... Rfxe5
{[%clk 0:00:55.5]} 25. fxe5 {[%clk 0:00:45.9]} 25... Rxe5 {[%clk 0:00:55.2]} 26.
b4 {[%clk 0:00:45.9]} 26... Na4 {[%clk 0:00:50.4]} 27. Nf4 {[%clk 0:00:33.2]}
27... c6 {[%clk 0:00:33.6]} 28. h5 {[%clk 0:00:22.2]} 28... Re4 {[%clk
0:00:31.9]} 29. g3 {[%clk 0:00:20.8]} 29... Nc3 {[%clk 0:00:24.8]} 30. Rd7+
{[%clk 0:00:16.9]} 30... Re7 {[%clk 0:00:23.1]} 31. Rd2 {[%clk 0:00:16.5]} 31...
Ne4 {[%clk 0:00:16.7]} 32. Rd3 {[%clk 0:00:16.8]} 32... Nf6 {[%clk 0:00:14.5]}
33. Kg2 {[%clk 0:00:12.3]} 33... Rd7 {[%clk 0:00:14]} 34. Re3 {[%clk 0:00:09.6]}
34... Nd5 {[%clk 0:00:14]} 35. Nxd5 {[%clk 0:00:07.1]} 35... Rxd5 {[%clk
0:00:13.5]} 36. Rf3+ {[%clk 0:00:06]} 36... Ke7 {[%clk 0:00:13]} 37. Re3+ {[%clk
0:00:06.5]} 37... Kd8 {[%clk 0:00:11.9]} 38. Rf3 {[%clk 0:00:05.9]} 38... Rxh5
{[%clk 0:00:10.7]} 39. Rf7 {[%clk 0:00:05.8]} 39... Rb5 {[%clk 0:00:10.2]} 40.
a3 {[%clk 0:00:03.4]} 40... Rxb4 {[%clk 0:00:11.1]} 41. axb4 {[%clk 0:00:03.3]}
41... c5 {[%clk 0:00:11.4]} 42. Rxb7 {[%clk 0:00:03.1]} 42... c4 {[%clk
0:00:09]} 43. Rxb6 {[%clk 0:00:03.2]} 43... Kc7 {[%clk 0:00:09.1]} 44. Rb5
{[%clk 0:00:03.7]} 44... Kd6 {[%clk 0:00:08.6]} 45. Rc5 {[%clk 0:00:04.3]} 1-0